bitfinex/quotes_SOLUSD_20241214
["timestamp","ask_amount","ask_price","bid_price","bid_amount"]
[1734140033021,0.25098,226.19,226.09,20.0]
[1734140036034,0.25098,226.21,226.09,20.0]
[1734140038232,24.027864,226.21,226.09,20.0]
[1734140038440,0.25098,226.19,226.03,15.08216355]
[1734140038612,0.25098,226.19,226.04,12.89458433]
[1734140039514,0.12549,226.19,226.05,13.55797699]
[1734140039735,0.12549,226.21,226.05,13.55797699]
[1734140040531,0.25098,226.21,226.08,20.0]
[1734140040839,0.25098,226.21,226.07,20.0]
[1734140041537,30.658864,226.21,226.07,20.0]
[1734140041717,30.658864,226.21,226.06,20.0]
[1734140041917,24.027864,226.19,226.05,20.0]
[1734140042128,0.12549,226.14,226.01,0.530409]
[1734140042318,0.12549,226.13,226.01,0.530409]
[1734140042932,24.027864,226.11,226.01,0.530409]
[1734140044125,0.25098,226.11,226.01,0.530409]
[1734140044334,20.0,226.09,226.01,0.530409]
[1734140044533,0.25098,226.08,226.01,0.530409]
[1734140045334,24.027864,226.08,226.01,0.530409]
[1734140046531,7.1573,226.12,226.02,32.91667924]
[1734140046731,7.1573,226.12,226.03,20.0]
[1734140046937,0.12549,226.11,226.03,20.0]
[1734140047128,0.12549,226.11,226.04,20.0]
[1734140047524,7.1573,226.12,226.04,20.0]
[1734140047839,10.85400287,226.18,226.06,20.0]
[1734140048041,9.06590294,226.18,226.09,20.0]
[1734140048223,0.12549,226.17,226.09,20.0]
[1734140048631,9.06590294,226.18,226.09,20.0]
[1734140048830,2.61050294,226.18,226.09,20.0]
[1734140049227,0.25098,226.17,226.09,20.0]
[1734140049850,0.12549,226.17,226.09,20.0]
[1734140050447,0.25098,226.17,226.09,20.0]
[1734140052747,0.25098,226.17,226.08,32.91667924]
[1734140053127,0.25098,226.17,226.09,20.0]
[1734140053742,0.25098,226.17,226.08,20.0]
[1734140055840,0.25098,226.17,226.02,13.58002604]
[1734140056757,0.25098,226.17,226.04,0.6634418]
[1734140057151,0.25098,226.17,226.05,20.0]
[1734140057951,0.25098,226.17,226.06,0.66338528]
[1734140058140,0.25098,226.17,226.08,20.0]
[1734140058535,0.25098,226.17,226.08,32.91667924]
[1734140058736,0.25098,226.17,226.09,0.6633048]
[1734140060635,0.25098,226.17,226.09,20.0]
[1734140062044,0.25098,226.17,226.12,20.0]
[1734140063234,0.12549,226.19,226.1,33.57994208]
[1734140063435,0.12549,226.19,226.12,12.91667924]
[1734140063638,0.12549,226.19,226.13,0.66313218]
[1734140064246,0.12549,226.19,226.11,0.66316723]
[1734140064747,0.25098,226.2,226.09,20.0]
[1734140067342,0.25098,226.2,226.09,20.66328775]
[1734140068743,0.25098,226.2,226.09,20.0]
[1734140069651,6.88228,226.2,226.07,20.0]
[1734140070145,0.12549,226.18,226.07,20.0]
[1734140070345,0.25098,226.18,226.07,20.0]
[1734140071373,0.25098,226.18,226.05,20.0]
[1734140072356,0.67569,226.16,226.03,0.66335631]
[1734140072558,0.12549,226.15,226.01,1.19390254]
[1734140073656,0.12549,226.15,226.03,20.0]
[1734140074464,0.12549,226.15,226.01,1.19390254]
[1734140077078,0.12549,226.14,226.01,1.19390254]
[1734140077304,0.12549,226.14,226.02,12.91667924]
[1734140077588,0.5502,226.16,226.02,12.91667924]
[1734140077589,0.5502,226.16,226.09,20.0]
[1734140077763,6.4883,226.17,226.09,20.0]
[1734140078349,0.12549,226.16,226.09,20.0]
[1734140078890,6.4883,226.17,226.09,20.0]
[1734140079251,0.25098,226.16,226.09,20.0]
[1734140080051,0.25098,226.16,226.11,20.0]
[1734140080757,0.25098,226.16,226.09,20.0]
[1734140081155,0.25098,226.16,226.06,12.91667924]
[1734140081357,0.25098,226.16,226.07,20.0]
[1734140081663,0.25098,226.16,226.04,12.91667924]
[1734140082256,0.25098,226.16,226.05,20.0]
[1734140083269,0.25098,226.16,226.02,13.58013492]
[1734140084670,1.99266056,226.16,226.05,20.0]
[1734140084966,0.25098,226.16,226.05,20.0]
[1734140086659,0.25098,226.16,226.02,13.58013492]
[1734140086863,30.660364,226.16,226.01,0.530409]
[1734140087064,30.660364,226.16,226.02,20.0]
[1734140087291,30.660364,226.16,226.03,20.0]
[1734140087473,32.4336093,226.16,226.03,20.0]
[1734140089779,32.4336093,226.16,226.02,20.0]
[1734140090283,32.4336093,226.16,226.03,20.0]
[1734140092081,0.25098,226.14,226.03,20.0]
[1734140092591,0.25098,226.14,226.01,0.530409]
[1734140094610,0.25098,226.14,226.01,20.530409]
[1734140096287,24.027864,226.12,226.01,0.530409]
[1734140097213,0.12549,226.12,226.01,20.530409]
[1734140097382,0.12549,226.14,226.02,8.924801]
[1734140097587,0.5502,226.15,226.04,8.26119147]
[1734140097784,0.5502,226.15,226.05,0.66336295]
[1734140099037,0.5502,226.15,226.06,8.26119147]
[1734140099038,0.12549,226.14,226.06,8.26119147]
[1734140099398,0.25098,226.14,226.06,0.66335877]
[1734140102794,6.4883,226.17,226.07,8.26119147]
[1734140103131,6.4883,226.17,226.08,8.92445011]
[1734140103300,0.12549,226.16,226.08,8.92445011]
[1734140103815,0.12549,226.16,226.08,0.66325864]
[1734140104208,0.25098,226.16,226.08,0.66325864]
[1734140104605,0.25098,226.16,226.07,0.6633077]
[1734140105696,0.25098,226.16,226.05,20.66330858]
[1734140106408,0.25098,226.16,226.06,8.26119147]
[1734140106591,0.25098,226.16,226.07,0.66330276]
[1734140106795,0.25098,226.16,226.07,8.92449423]
[1734140107010,0.25098,226.16,226.07,0.66330276]
[1734140109117,0.5502,226.2,226.11,8.26119147]
[1734140109413,0.12549,226.19,226.12,0.6631568]
[1734140109717,0.12549,226.19,226.12,8.92434827]
[1734140109927,0.12549,226.21,226.12,0.6631568]
[1734140110093,0.12549,226.21,226.12,8.92434827]
[1734140110716,0.25098,226.21,226.12,8.92434827]
[1734140111026,0.5502,226.25,226.13,8.26119147]
[1734140111320,0.5502,226.25,226.15,8.26119147]
[1734140111499,0.12549,226.24,226.16,0.66300828]
[1734140112303,0.25098,226.24,226.16,0.66300828]
[1734140113515,0.12549,226.24,226.16,2.30090828]
[1734140114519,0.12549,226.24,226.16,10.56209975]
[1734140116797,0.12549,226.24,226.16,0.66300828]
[1734140117020,0.12549,226.24,226.14,8.92427549]
[1734140117604,0.12549,226.24,226.14,0.66308402]
[1734140117793,0.12549,226.24,226.14,8.92427549]
[1734140119323,0.12549,226.24,226.16,8.26119147]
[1734140119519,6.1243,226.28,226.18,8.26119147]
[1734140119724,0.12549,226.27,226.19,0.66291434]
[1734140120218,6.1243,226.28,226.19,0.66291434]
[1734140121322,0.5502,226.33,226.23,8.26119147]
[1734140121507,0.5502,226.33,226.24,0.66277356]
[1734140121708,0.12549,226.32,226.24,0.66277356]
[1734140122422,0.12549,226.33,226.24,8.92396503]
[1734140122806,6.1243,226.34,226.26,8.26119147]
[1734140123015,6.75,226.39,226.27,0.66272352]
[1734140123514,0.12549,226.38,226.27,0.66272352]
[1734140123915,6.75,226.39,226.33,8.26119147]
[1734140124118,6.1998,226.44,226.34,0.66256568]
[1734140124320,0.12549,226.43,226.34,0.66256568]
[1734140124513,0.12549,226.43,226.31,28.26119147]
[1734140124827,6.1998,226.44,226.32,0.6625769]
[1734140125328,6.1998,226.49,226.35,12.87655581]
[1734140125551,6.1998,226.49,226.37,12.87655581]
[1734140126143,6.1998,226.49,226.38,0.66240714]
[1734140126347,0.12549,226.48,226.38,0.66240714]
[1734140126569,0.25098,226.48,226.38,0.66240714]
[1734140126849,0.25098,226.48,226.37,12.87655581]
[1734140127916,0.25098,226.48,226.38,0.66244108]
[1734140128535,6.1998,226.49,226.4,20.0]
[1734140128830,6.1998,226.49,226.41,0.66231347]
[1734140129011,0.12549,226.48,226.4,20.0]
[1734140129532,0.12549,226.48,226.41,0.66238026]
[1734140129919,6.1998,226.49,226.41,0.66238026]
[1734140130103,6.1998,226.49,226.4,20.0]
[1734140130810,0.12549,226.48,226.4,20.0]
[1734140131209,0.25098,226.48,226.4,20.0]
[1734140133424,0.25098,226.48,226.37,13.53889906]
[1734140134115,0.25098,226.48,226.33,0.66241808]
[1734140134333,24.027864,226.48,226.33,0.66241808]
[1734140134923,24.027864,226.48,226.33,13.53897389]
[1734140135117,0.25098,226.48,226.36,12.87655581]
[1734140135323,0.25098,226.48,226.37,0.66243247]
[1734140138042,0.25098,226.48,226.36,0.66243703]
[1734140140144,24.027864,226.48,226.35,20.0]
[1734140140522,0.12549,226.44,226.29,13.53913661]
[1734140140730,0.25098,226.44,226.32,20.0]
[1734140141337,0.25098,226.44,226.29,13.53913661]
[1734140142241,0.25098,226.42,226.29,0.6625808]
[1734140142635,0.25098,226.4,226.29,0.6625808]
[1734140142947,0.25098,226.4,226.29,12.87655581]
[1734140143124,0.25098,226.4,226.3,0.66267191]
[1734140143733,0.25098,226.4,226.32,20.0]
[1734140143934,0.25098,226.4,226.33,0.66256933]
[1734140144538,6.3381,226.41,226.33,0.66256933]
[1734140145534,0.25098,226.4,226.31,0.66257429]
[1734140145858,0.25098,226.4,226.32,20.0]
[1734140146227,0.25098,226.4,226.3,20.0]
[1734140146750,0.25098,226.4,226.31,20.0]
[1734140147530,0.25098,226.4,226.3,20.0]
[1734140148741,0.25098,226.4,226.31,0.66264536]
[1734140149665,0.25098,226.4,226.3,0.66264677]
[1734140153259,0.25098,226.4,226.31,20.0]
[1734140153572,0.25098,226.4,226.32,8.9019297]
[1734140153784,6.6237,226.46,226.36,8.23935117]
[1734140153785,6.0561,226.46,226.36,8.23935117]
[1734140153953,6.0561,226.46,226.38,8.23935117]
[1734140154272,0.12549,226.45,226.36,8.23935117]
[1734140154852,0.12549,226.45,226.37,0.66245724]
[1734140155157,0.25098,226.45,226.37,0.66245724]
[1734140155752,20.0,226.48,226.38,32.01623517]
[1734140155960,20.0,226.48,226.39,8.90169289]
[1734140156157,0.12549,226.47,226.37,8.90168985]
[1734140157374,0.25098,226.48,226.37,13.52859614]
[1734140159359,0.5502,226.49,226.38,23.776884]
[1734140159552,0.5502,226.49,226.39,0.66232805]
[1734140160483,0.12549,226.48,226.39,13.52858551]
[1734140160678,0.25098,226.48,226.39,13.52858551]
[1734140162078,0.5502,226.49,226.39,13.52858551]
[1734140162484,0.25098,226.48,226.39,13.52858551]
[1734140163088,0.5502,226.49,226.41,20.0]
[1734140163281,0.12549,226.51,226.42,0.66227543]
[1734140163455,0.25098,226.51,226.42,0.66227543]
[1734140164365,5.68159,226.52,226.44,12.86625746]
[1734140164578,5.68159,226.52,226.45,0.66218949]
[1734140168290,0.25098,226.51,226.41,20.0]
[1734140168491,0.25098,226.51,226.38,148.86625746]
[1734140168492,0.25098,226.51,226.39,0.66234633]
[1734140168916,6.87318,226.51,226.39,0.66234633]
[1734140169104,6.87318,226.51,226.38,136.0]
[1734140170689,0.25098,226.47,226.34,30.0]
[1734140171029,0.12549,226.45,226.33,6.21409576]
[1734140171197,0.25098,226.45,226.33,6.21409576]
[1734140172730,0.5502,226.46,226.33,0.66246546]
[1734140172731,0.25098,226.43,226.33,0.66246546]
[1734140175205,0.12549,226.43,226.33,0.66246546]
[1734140175452,6.621,226.44,226.35,12.86625746]
[1734140175740,6.621,226.44,226.36,0.66243778]
[1734140177350,6.621,226.44,226.34,0.66248323]
[1734140178355,0.25098,226.43,226.34,0.66248323]
[1734140178520,0.25098,226.43,226.33,0.66253595]
[1734140179612,6.621,226.44,226.35,8.23780404]
[1734140179819,6.621,226.44,226.36,0.66242346]
[1734140181216,0.25098,226.43,226.32,20.66245753]
[1734140183041,0.25098,226.43,226.32,0.66245753]
[1734140183246,0.25098,226.43,226.3,0.66258659]
[1734140184132,0.25098,226.43,226.29,0.66263523]
[1734140184655,0.25098,226.43,226.31,8.23780404]
[1734140184857,0.25098,226.43,226.32,0.66256948]
[1734140186572,0.25098,226.43,226.32,8.90037352]
[1734140186746,0.25098,226.43,226.33,28.23780404]
[1734140186932,0.25098,226.43,226.34,0.66249611]
[1734140187357,0.12549,226.43,226.34,0.66249611]
[1734140188145,6.621,226.44,226.34,0.66249611]
[1734140188660,0.12549,226.43,226.34,0.66249611]
[1734140189259,0.12549,226.43,226.35,20.0]
[1734140190363,0.25098,226.43,226.31,0.66250673]
[1734140191049,0.25098,226.43,226.29,0.66263934]
[1734140198969,0.25098,226.41,226.29,0.66263934]
[1734140202379,0.12549,226.43,226.32,8.23780404]
[1734140202566,6.621,226.44,226.34,8.23780404]
[1734140202766,0.12549,226.43,226.35,0.6624627]
[1734140203376,6.621,226.44,226.35,0.6624627]
[1734140203582,6.621,226.44,226.32,8.23780404]
[1734140203873,6.621,226.44,226.33,0.66253886]
[1734140203874,0.12549,226.43,226.33,0.66253886]
[1734140204175,6.621,226.44,226.34,32.01468804]
[1734140204382,6.621,226.44,226.35,0.6624518]
[1734140204983,0.12549,226.43,226.35,0.6624518]
[1734140205187,0.12549,226.43,226.33,0.66247962]
[1734140205685,0.25098,226.43,226.33,0.66247962]
[1734140207263,0.25098,226.43,226.33,20.66247962]
[1734140208894,0.25098,226.43,226.31,0.66255276]
[1734140209561,0.12549,226.4,226.31,0.66255276]
[1734140209760,0.25098,226.4,226.3,0.66263137]
[1734140210176,0.12549,226.4,226.3,0.66263137]
[1734140210670,0.25098,226.4,226.3,0.66263137]
[1734140210876,0.25098,226.4,226.31,0.66264145]
[1734140211894,0.25098,226.4,226.29,0.66264103]
[1734140214798,0.25098,226.4,226.23,37.4169559]
[1734140214799,0.25098,226.38,226.26,20.66267834]
[1734140217774,0.25098,226.38,226.21,17.0354303]
[1734140217775,0.12549,226.33,226.22,0.66270288]
[1734140218106,0.12549,226.33,226.18,8.90068279]
[1734140218283,0.25098,226.35,226.18,8.90068279]
[1734140218802,0.25098,226.35,226.19,8.23780404]
[1734140218989,0.25098,226.35,226.2,0.66289393]
[1734140219186,0.25098,226.35,226.2,20.66289393]
[1734140220191,0.25098,226.35,226.22,20.0]
[1734140220504,6.3924,226.37,226.24,8.23780404]
[1734140220698,6.3924,226.37,226.25,0.66275273]
[1734140221296,6.3924,226.37,226.28,20.0]
[1734140221611,6.3924,226.37,226.29,0.66264826]
[1734140221612,0.12549,226.36,226.29,0.66264826]
[1734140221987,6.3924,226.37,226.29,0.66264826]
[1734140229317,6.3924,226.37,226.27,0.66268246]
[1734140229923,6.3924,226.37,226.28,20.0]
[1734140230216,6.3924,226.37,226.3,20.0]
[1734140230526,6.3924,226.37,226.31,0.66259784]
[1734140232310,6.3924,226.37,226.3,20.0]
[1734140232718,6.3924,226.37,226.29,20.0]
[1734140233301,6.3924,226.37,226.29,20.66264988]
[1734140235216,6.3924,226.37,226.27,0.6626426]
[1734140235217,0.25098,226.36,226.27,0.6626426]
[1734140236204,0.25098,226.36,226.25,0.66276077]
[1734140236716,0.25098,226.36,226.27,20.0]
[1734140237894,6.3924,226.37,226.28,0.66274271]
[1734140242626,0.25098,226.36,226.25,0.66267344]
[1734140244109,0.25098,226.36,226.25,20.66267344]
[1734140244814,0.25098,226.36,226.25,0.66267344]
[1734140245214,0.25098,226.36,226.22,0.66281009]
[1734140246209,0.25098,226.36,226.21,0.66285636]
[1734140246528,13.0189,226.37,226.21,0.66285636]
[1734140246529,0.25098,226.31,226.21,0.66285636]
[1734140247233,0.25098,226.31,226.22,0.66287662]
[1734140247626,0.25098,226.31,226.22,20.66287662]
[1734140250219,0.5502,226.32,226.22,20.66287662]
[1734140250427,6.9426,226.37,226.24,28.23780404]
[1734140250624,6.9426,226.37,226.25,0.66273966]
[1734140250811,0.12549,226.36,226.25,0.66273966]
[1734140251011,0.12549,226.36,226.25,0.58273866]
[1734140251416,0.12549,226.36,226.25,20.58273866]
[1734140251718,0.25098,226.36,226.25,20.58273866]
[1734140252522,0.25098,226.36,226.25,20.0]
[1734140252935,0.25098,226.36,226.25,20.58282522]
[1734140253341,0.25098,226.34,226.21,20.0]
[1734140256125,0.25098,226.31,226.2,0.58277994]
[1734140256907,20.25098,226.31,226.2,0.58277994]
[1734140258074,0.25098,226.33,226.2,0.58277994]
[1734140260494,0.25098,226.3,226.2,0.58277994]
[1734140260697,0.25098,226.28,226.17,0.58297757]
[1734140261603,0.25098,226.28,226.16,0.58303082]
[1734140262399,0.25098,226.28,226.17,20.0]
[1734140263303,0.25098,226.28,226.16,20.0]
[1734140263881,0.25098,226.28,226.16,20.58307514]
[1734140264083,0.25098,226.28,226.17,20.0]
[1734140266090,20.0,226.26,226.11,0.58306832]
[1734140266296,0.25098,226.25,226.12,23.776884]
[1734140267300,0.25098,226.25,226.11,8.82087236]
[1734140267708,0.25098,226.25,226.13,20.0]
[1734140272293,0.25098,226.17,226.02,9.9545]
[1734140272614,0.25098,226.15,226.03,0.66339771]
[1734140272993,0.25098,226.13,226.01,0.530409]
[1734140275509,0.25098,226.13,226.02,0.66352779]
[1734140276217,0.25098,226.13,226.01,0.530409]
[1734140276598,0.5502,226.09,226.01,0.530409]
[1734140276914,0.25098,226.08,226.01,0.530409]
[1734140282518,0.12549,226.06,226.01,0.530409]
[1734140282711,0.25098,226.06,226.01,0.530409]
[1734140287912,6.3971,226.07,226.01,0.530409]
[1734140288233,0.12549,226.07,226.01,0.530409]
[1734140288702,8.98739124,226.12,226.01,0.530409]
[1734140288905,15.38449124,226.12,226.01,0.530409]
[1734140289127,0.12549,226.11,226.01,0.530409]
[1734140290127,6.366,226.12,226.02,0.66350489]
[1734140290321,0.5502,226.14,226.04,23.776884]
[1734140290525,0.5502,226.14,226.05,0.66333901]
[1734140290926,0.12549,226.13,226.05,0.66333901]
[1734140291320,0.12549,226.13,226.03,0.66336099]
[1734140291729,0.25098,226.13,226.03,0.66336099]
[1734140292625,0.25098,226.13,226.04,0.66339784]
[1734140293625,0.5502,226.14,226.03,23.776884]
[1734140293830,0.5502,226.14,226.05,23.776884]
[1734140294007,0.5502,226.14,226.06,0.66331927]
[1734140297215,13.2635,226.2,226.06,0.66331927]
[1734140297412,13.2635,226.2,226.09,8.23780404]
[1734140297619,13.2635,226.2,226.1,0.66317787]
[1734140297815,0.12549,226.19,226.1,0.66317787]
[1734140298030,0.12549,226.19,226.08,0.66318847]
[1734140298521,0.12549,226.23,226.08,0.66318847]
[1734140298720,24.027864,226.23,226.08,0.66318847]
[1734140299419,20.0,226.22,226.09,32.01468804]
[1734140299736,0.12549,226.21,226.1,0.66313682]
[1734140301036,0.25098,226.21,226.1,0.66313682]
[1734140301223,0.25098,226.21,226.09,20.0]
[1734140301857,0.25098,226.21,226.08,0.66316389]
[1734140302332,0.25098,226.21,226.09,0.66325816]
[1734140302532,0.25098,226.21,226.1,20.0]
[1734140302533,0.12549,226.21,226.1,20.0]
[1734140302734,0.12549,226.21,226.11,0.66315391]
[1734140307541,17.680237,226.27,226.11,0.66315391]
[1734140307542,7.1539,226.3,226.14,23.776884]
[1734140307753,7.1539,226.3,226.17,8.23780404]
[1734140307918,0.12549,226.29,226.18,0.66294615]
[1734140308619,0.25098,226.29,226.18,0.66294615]
[1734140310236,7.1539,226.3,226.15,23.776884]
[1734140310428,7.1539,226.3,226.16,0.66299506]
[1734140310631,23.902374,226.29,226.14,0.66305688]
[1734140311024,30.530974,226.29,226.12,9.80080404]
[1734140311214,30.530974,226.29,226.12,21.563]
[1734140311741,0.25098,226.25,226.13,20.0]
[1734140312120,0.25098,226.25,226.13,20.66312238]
[1734140318137,0.25098,226.25,226.15,8.23780404]
[1734140318138,0.12549,226.25,226.15,8.23780404]
[1734140318438,0.25098,226.26,226.13,20.66298889]
[1734140318986,20.0,226.22,226.07,0.66310283]
[1734140319126,0.12549,226.18,225.99,1.563]
[1734140319424,0.25098,226.11,225.99,1.563]
[1734140320248,0.25098,226.11,226.0,0.66349686]
[1734140320558,7.1539,226.19,226.03,20.0]
[1734140320738,0.12549,226.14,226.01,20.530409]
[1734140321046,0.12549,226.14,226.01,0.530409]
[1734140321232,23.902374,226.14,226.01,0.530409]
[1734140321438,0.25098,226.08,226.01,0.530409]
[1734140324234,7.0021,226.09,226.01,0.530409]
[1734140326357,0.25098,226.05,226.01,0.530409]
[1734140326964,7.0021,226.09,226.01,0.530409]
[1734140327528,0.25098,226.08,226.01,0.530409]
[1734140329138,24.027864,226.08,226.01,0.530409]
[1734140330044,0.25098,226.08,226.01,0.530409]
[1734140334755,7.0251,226.15,226.02,0.66351818]
[1734140335429,0.12549,226.14,226.02,0.66351818]
[1734140336643,0.12549,226.13,226.02,0.66351818]
[1734140337465,2.71806946,226.17,226.02,0.66351818]
[1734140337466,0.5502,226.2,226.05,12.91220142]
[1734140337637,0.5502,226.2,226.06,13.57546881]
[1734140337984,0.5502,226.2,226.06,0.66326739]
[1734140338257,0.12549,226.19,226.06,0.66326739]
[1734140338641,23.902374,226.19,226.07,0.66329762]
[1734140339250,23.902374,226.19,226.07,20.66329762]
[1734140339443,6.4749,226.21,226.09,30.0]
[1734140339650,6.4749,226.21,226.1,0.66314042]
[1734140339849,0.12549,226.2,226.08,0.66318144]
[1734140340660,0.25098,226.2,226.08,0.66318144]
[1734140342570,24.027864,226.2,226.08,0.66318144]
[1734140342775,0.25098,226.2,226.08,0.66318144]
[1734140343146,0.25098,226.2,226.08,13.57538286]
[1734140347372,0.25098,226.2,226.09,20.0]
[1734140347585,0.25098,226.2,226.1,0.66317402]
[1734140352753,0.25098,226.2,226.1,20.66317402]
[1734140354248,0.25098,226.2,226.1,0.66317402]
[1734140354452,0.12549,226.2,226.1,0.66317402]
[1734140354750,6.4749,226.21,226.1,0.66317402]
[1734140355559,0.12549,226.2,226.1,20.66317402]
[1734140356568,6.4749,226.21,226.12,20.0]
[1734140356776,6.4749,226.21,226.12,0.66311045]
[1734140357169,6.4749,226.21,226.12,20.66311045]
[1734140357665,6.4749,226.21,226.13,20.0]
[1734140358047,0.25098,226.2,226.12,20.0]
[1734140358254,6.4749,226.21,226.12,20.0]
[1734140358451,6.4749,226.21,226.12,20.66311956]
[1734140362370,6.4749,226.21,226.12,20.0]
[1734140362695,0.25098,226.2,226.1,20.0]
[1734140363010,0.25098,226.2,226.08,20.66311429]
[1734140363301,24.027864,226.2,226.08,20.0]
[1734140365190,24.027864,226.2,226.09,20.66326828]
[1734140365492,24.027864,226.2,226.09,0.66326828]
[1734140366614,24.027864,226.18,226.08,20.0]
[1734140366811,24.027864,226.18,226.04,0.66335067]
[1734140368019,24.027864,226.18,226.04,20.66335067]
[1734140368186,24.027864,226.18,226.05,20.0]
[1734140368719,24.027864,226.18,226.02,0.66339575]
[1734140368720,24.027864,226.16,226.02,0.66339575]
[1734140368890,0.12549,226.14,226.01,0.530409]
[1734140369110,0.25098,226.14,226.01,0.530409]
[1734140369312,0.25098,226.14,226.01,1.19389037]
[1734140370179,0.25098,226.14,226.03,20.0]
[1734140370477,0.25098,226.14,226.01,1.19389037]
[1734140370701,0.25098,226.14,226.03,8.25567984]
[1734140370911,6.3761,226.15,226.07,20.0]
[1734140371134,0.5502,226.19,226.09,8.25567984]
[1734140371287,0.5502,226.19,226.12,20.0]
[1734140372327,0.5502,226.19,226.12,20.66316909]
[1734140373183,6.3761,226.21,226.14,20.0]
[1734140374301,6.3761,226.21,226.13,20.0]
[1734140374606,6.3761,226.21,226.14,20.0]
[1734140375117,0.12549,226.23,226.13,20.0]
[1734140375318,0.5502,226.3,226.2,8.25567984]
[1734140375619,0.5502,226.3,226.21,0.66294022]
[1734140375823,0.12549,226.29,226.17,20.0]
[1734140376180,0.12549,226.29,226.12,20.0]
[1734140376590,24.027864,226.29,226.11,0.66307285]
[1734140377206,0.12549,226.27,226.11,0.66307285]
[1734140377411,24.027864,226.27,226.11,0.66307285]
[1734140377983,24.027864,226.27,226.13,20.0]
[1734140378819,24.027864,226.27,226.14,0.66315987]
[1734140378995,24.027864,226.27,226.14,20.0]
[1734140379909,24.027864,226.27,226.13,20.0]
[1734140380089,24.027864,226.27,226.15,20.0]
[1734140381695,0.12549,226.28,226.15,20.0]
[1734140386715,24.027864,226.29,226.17,20.0]
[1734140390719,30.656564,226.29,226.15,20.0]
[1734140391012,24.027864,226.27,226.09,9.78367984]
[1734140391217,24.027864,226.25,226.09,1.528]
[1734140391595,24.027864,226.25,226.09,10.44693906]
[1734140392399,24.027864,226.23,226.12,20.0]
[1734140392613,24.027864,226.23,226.11,20.0]
[1734140394122,0.5502,226.26,226.05,28.91895456]
[1734140394123,24.027864,226.21,226.05,28.91895456]
[1734140394504,23.902374,226.19,226.07,20.0]
[1734140394696,0.12549,226.18,226.07,20.0]
[1734140394894,0.12549,226.18,226.03,9.83517984]
[1734140395097,0.12549,226.18,226.04,8.91909673]
[1734140396117,0.12549,226.18,226.07,20.0]
[1734140396319,0.12549,226.18,226.04,0.66341689]
[1734140396507,0.12549,226.18,226.06,20.0]
[1734140398207,0.12549,226.18,226.04,8.91909673]
[1734140400714,0.25098,226.19,226.07,20.0]
[1734140400909,0.25098,226.19,226.06,8.25567984]
[1734140401616,0.5502,226.2,226.09,20.0]
[1734140402212,0.12549,226.19,226.09,20.0]
[1734140402416,0.12549,226.19,226.08,20.0]
[1734140403020,0.5502,226.2,226.09,0.6633572]
[1734140403249,0.5502,226.2,226.1,20.0]
[1734140403746,0.12549,226.19,226.1,20.0]
[1734140403952,0.12549,226.19,226.07,20.0]
[1734140404437,24.027864,226.19,226.07,20.0]
[1734140404616,24.027864,226.19,226.08,20.0]
[1734140405225,24.027864,226.19,226.07,20.0]
[1734140405641,24.027864,226.19,226.04,8.25567984]
[1734140405839,24.027864,226.19,226.04,8.9190847]
[1734140406725,24.027864,226.19,226.04,0.66340486]
[1734140406930,30.282664,226.17,226.04,20.0]
[1734140409063,30.282664,226.17,226.03,20.0]
[1734140409423,30.282664,226.17,226.04,8.25567984]
[1734140410124,6.2548,226.17,226.06,8.25567984]
[1734140410327,6.2548,226.17,226.07,8.91898531]
[1734140410529,0.12549,226.16,226.07,0.66330547]
[1734140410954,0.12549,226.16,226.06,8.25567984]
[1734140411743,0.12549,226.16,226.03,31.72351042]
[1734140411744,0.25098,226.16,226.03,28.91899026]
[1734140412139,24.027864,226.16,226.03,28.91899026]
[1734140413241,24.027864,226.16,226.04,8.25567984]
[1734140413448,24.027864,226.16,226.05,8.25567984]
[1734140415049,24.027864,226.16,226.04,8.25567984]